bitfinex-derivatives/quotes_ETHF0:USTF0_20240925
["timestamp","ask_amount","ask_price","bid_price","bid_amount"]
[1727277960584,6.64888,2624.3,2623.8,1.36813451]
[1727277960585,6.2678,2624.3,2624.2,0.38108]
[1727277961089,10.45928,2624.3,2624.1,0.38109]
[1727277961292,6.64888,2624.3,2624.1,0.38109]
[1727277961491,6.2678,2624.3,2624.2,0.38108]
[1727277961678,3.5878,2624.3,2624.2,0.38108]
[1727277961884,0.38,2624.3,2624.2,0.38108]
[1727277962084,3.2078,2624.6,2624.0,4.20473451]
[1727277962289,3.2078,2624.6,2624.5,0.38104]
[1727277962992,3.2078,2624.6,2624.5,1.33365]
[1727277963193,0.392,2624.7,2624.6,0.38102]
[1727277963390,2.68,2624.9,2624.8,0.381]
[1727277963581,3.072,2625.1,2624.9,0.38097]
[1727277963780,3.072,2625.1,2624.7,1.35753]
[1727277963993,3.072,2625.1,2624.9,0.38097]
[1727277964382,3.072,2625.1,2625.0,0.38097]
[1727277964383,0.392,2625.1,2625.0,0.38097]
[1727277964689,0.3984,2625.2,2625.1,0.38095]
[1727277965492,0.388,2625.3,2625.2,0.38094]
[1727277965797,2.68,2625.5,2625.4,0.38091]
[1727277966095,0.7928,2625.6,2625.5,0.38089]
[1727277966694,0.7928,2625.6,2625.4,0.3809]
[1727277967308,0.7928,2625.6,2625.5,0.38089]
[1727277967507,3.4728,2625.6,2625.5,0.38089]
[1727277968200,3.4728,2625.6,2625.2,12.25912229]
[1727277968201,7.2816,2625.6,2625.2,12.25912229]
[1727277968503,0.7928,2625.6,2625.5,0.38089]
[1727277969011,5.8878,2625.7,2625.6,0.38088]
[1727277969508,5.8878,2625.7,2625.5,0.38088]
[1727277969713,5.8878,2625.7,2625.4,0.3809]
[1727277969905,5.8878,2625.7,2625.5,0.38089]
[1727277970104,5.8878,2625.7,2625.2,13.14209243]
[1727277970413,6.26867,2625.7,2625.2,12.18976243]
[1727277970610,6.26867,2625.7,2625.4,0.3809]
[1727277970802,5.8878,2625.7,2625.4,0.3809]
[1727277971106,5.8878,2625.7,2625.5,0.38089]
[1727277971411,5.8878,2625.7,2625.2,12.18976243]
[1727277971607,5.8878,2625.7,2625.2,8.07625697]
[1727277971803,2.68,2625.5,2625.2,8.45718697]
[1727277972012,0.3889,2625.4,2625.2,0.38093]
[1727277972307,0.7594,2625.4,2625.2,0.38094]
[1727277972511,0.7594,2625.4,2625.3,0.38092]
[1727277974903,1.14031,2625.4,2624.8,2.34230451]
[1727277975220,0.7594,2625.4,2625.2,0.38093]
[1727277975906,2.68,2625.3,2624.8,0.7644]
[1727277976219,2.68,2625.2,2625.0,0.38095]
[1727277976407,6.6472,2625.4,2624.8,0.7644]
[1727277976717,6.6472,2625.4,2625.2,0.38093]
[1727277976920,6.6472,2625.4,2625.3,0.38092]
[1727277976921,3.9672,2625.4,2625.3,0.38092]
[1727277977218,6.6472,2625.4,2625.1,0.38095]
[1727277977412,7.02811,2625.4,2625.1,0.38095]
[1727277977603,0.38093,2625.3,2625.0,0.38095]
[1727277977806,0.38093,2625.3,2625.1,0.38095]
[1727277978015,0.38096,2625.1,2624.9,8.06319782]
[1727277978218,2.68,2625.0,2624.9,0.38098]
[1727277978407,3.0818,2625.0,2624.9,0.38098]
[1727277978607,3.0818,2625.0,2624.5,0.99693451]
[1727277978909,3.46277,2625.0,2624.7,0.381]
[1727277979414,3.83247,2625.0,2624.7,0.381]
[1727277980317,3.4515,2625.0,2624.8,0.38099]
[1727277980617,3.4515,2625.0,2624.9,0.38098]
[1727277980618,0.7715,2625.0,2624.9,0.38098]
[1727277980806,0.4018,2625.0,2624.9,0.38098]
[1727277982008,3.0689,2625.4,2624.7,0.9525]
[1727277982213,3.82121,2625.4,2625.1,0.38094]
[1727277982515,0.7603,2625.4,2624.8,13.151381]
[1727277982719,0.7603,2625.4,2625.2,0.38093]
[1727277983117,3.4403,2625.4,2625.2,0.38093]
[1727277983313,3.4403,2625.4,2624.9,0.7853]
[1727277983514,3.82121,2625.4,2624.9,0.7853]
[1727277983823,3.4403,2625.4,2625.2,0.38093]
[1727277985412,3.4403,2625.4,2624.9,0.7853]
[1727277985722,3.82121,2625.4,2625.2,0.38093]
[1727277986316,3.82121,2625.4,2625.1,0.38094]
[1727277986518,0.38093,2625.3,2625.1,0.38094]
[1727277986816,3.82122,2625.4,2625.2,0.38093]
[1727277987020,3.4403,2625.4,2624.9,0.392]
[1727277987322,3.4403,2625.4,2625.0,0.38096]
[1727277987323,3.06095,2625.1,2625.0,0.38096]
[1727277987519,0.38097,2625.0,2624.6,0.7599]
[1727277987719,1.17469,2624.9,2624.7,8.05999759]
[1727277987921,3.061,2624.8,2624.3,0.3714]
[1727277988122,2.68,2624.5,2624.4,0.38104]
[1727277988323,2.68,2624.5,2624.0,0.3714]
[1727277988324,0.38106,2624.4,2624.0,0.3714]
[1727277988620,2.68,2624.3,2624.2,0.38107]
[1727277988824,0.4013,2624.3,2624.2,0.38108]
[1727277989025,3.0813,2624.3,2624.2,0.38108]
[1727277989415,0.4013,2624.3,2624.2,0.38108]
[1727277989621,3.0813,2624.3,2624.1,0.38109]
[1727277989826,0.38108,2624.2,2623.7,0.95287]
[1727277990023,0.38108,2624.2,2623.5,0.75]
[1727277990024,2.68,2623.9,2623.5,0.75]
[1727277990227,2.68,2623.9,2623.8,0.38114]
[1727277990622,0.3811,2624.1,2624.0,0.38111]
[1727277990623,2.68,2624.1,2624.0,0.38111]
[1727277990928,1.16657,2624.3,2624.0,0.38111]
[1727277991122,3.84657,2624.3,2624.0,0.38111]
[1727277991517,0.38108,2624.2,2623.9,0.38112]
[1727277992328,2.68,2624.1,2623.5,4.42693451]
[1727277992518,3.0611,2624.1,2623.8,0.38114]
[1727277992729,2.68,2623.9,2623.6,7.84072056]
[1727277992922,2.68,2623.9,2623.7,0.38115]
[1727277993116,2.68,2623.9,2623.6,7.84072056]
[1727277993117,3.0811,2623.9,2623.6,7.84072056]
[1727277993323,3.0811,2623.9,2623.7,0.38115]
[1727277993725,3.46223,2623.9,2623.6,8.22188056]
[1727277993925,3.0811,2623.9,2623.7,0.38116]
[1727277994222,3.0811,2623.9,2623.7,0.38115]
[1727277994820,3.0811,2623.9,2623.8,0.38114]
[1727277995021,3.2078,2624.1,2624.0,0.38111]
[1727277995416,3.2078,2624.1,2623.9,0.38112]
[1727277996033,3.06109,2624.2,2624.0,0.38111]
[1727277998034,2.68,2624.2,2624.0,0.38111]
[1727277998335,2.68,2624.1,2623.6,0.95292]
[1727277998630,2.68,2624.1,2623.5,0.75]
[1727277998631,0.38112,2624.0,2623.8,0.38113]
[1727277999231,3.06111,2624.1,2623.9,0.38112]
[1727277999424,3.06109,2624.2,2623.6,7.95969884]
[1727277999619,0.38109,2624.2,2624.0,0.3811]
[1727277999821,3.06109,2624.2,2624.0,0.3811]
[1727278001226,3.06109,2624.2,2623.7,0.95288]
[1727278001227,2.68,2624.2,2623.7,0.95288]
[1727278001425,3.6091,2624.3,2624.2,0.38108]
[1727278001626,3.6091,2624.3,2624.1,0.38109]
[1727278001832,3.99018,2624.3,2624.1,0.38109]
[1727278002337,3.99017,2624.3,2624.1,0.38109]
[1727278002741,6.67017,2624.3,2624.1,0.38109]
[1727278003129,3.46237,2624.3,2623.8,0.95285]
[1727278003334,0.78237,2624.3,2624.1,0.38109]
[1727278003541,3.46237,2624.3,2624.1,0.38109]
[1727278003739,0.4013,2624.3,2624.2,0.38108]
[1727278004242,0.78237,2624.3,2624.1,0.38109]
[1727278004534,0.78237,2624.3,2624.2,0.38108]
[1727278004535,3.0813,2624.3,2624.2,0.38108]
[1727278006237,3.46237,2624.3,2624.2,0.38108]
[1727278006441,3.0813,2624.3,2624.2,0.38108]
[1727278008440,0.4013,2624.3,2624.2,0.38108]
[1727278008833,3.2078,2624.4,2624.3,1.33375]
[1727278009547,3.2078,2624.4,2624.3,0.38107]
[1727278011046,3.5783,2624.4,2624.3,0.38107]
[1727278012236,3.2078,2624.4,2624.3,1.33375]
[1727278012648,3.2078,2624.4,2624.3,0.38107]
[1727278015852,3.06104,2624.6,2624.4,0.38104]
[1727278016051,3.2078,2624.5,2624.4,0.38104]
[1727278016751,3.58884,2624.5,2624.4,0.38104]
[1727278016959,3.58884,2624.5,2624.0,1.71308]
[1727278016960,3.2078,2624.5,2624.0,1.71308]
[1727278017154,3.58885,2624.5,2624.0,1.71308]
[1727278017456,3.58885,2624.5,2624.4,0.38105]
[1727278017653,3.58884,2624.5,2624.4,0.38105]
[1727278018050,3.2078,2624.5,2624.4,0.38105]
[1727278018757,3.2078,2624.5,2624.2,0.95271]
[1727278018758,3.2078,2624.5,2624.1,0.95275]
[1727278018951,3.2078,2624.5,2624.4,0.38105]
[1727278020058,3.58884,2624.5,2624.4,0.38105]
[1727278020260,3.2078,2624.5,2624.4,0.38105]
[1727278021160,3.58884,2624.5,2624.4,0.38105]
[1727278021454,3.2078,2624.5,2624.4,0.38105]
[1727278021765,2.68,2624.6,2624.5,0.38104]
[1727278022062,0.3705,2624.7,2624.6,0.38102]
[1727278022461,0.38103,2624.6,2624.5,0.38103]
[1727278022766,0.75152,2624.7,2624.3,0.95267]
[1727278023060,0.75152,2624.7,2624.2,0.95271]
[1727278023266,0.38102,2624.6,2624.5,0.38103]
[1727278023564,0.3705,2624.7,2624.5,0.38103]
[1727278023754,0.38102,2624.6,2624.5,0.38103]
[1727278024064,6.2583,2624.7,2624.4,0.38105]
[1727278024249,0.38104,2624.6,2624.1,1.94966451]
[1727278024450,0.38104,2624.6,2624.4,0.38104]
[1727278024655,2.68,2624.5,2624.3,0.38106]
[1727278024860,0.95265,2624.4,2624.1,0.38109]
[1727278025061,0.38108,2624.2,2624.1,0.38109]
[1727278025263,0.7819,2624.3,2624.1,0.38109]
[1727278025564,0.7819,2624.3,2624.2,0.38108]
[1727278025762,2.68,2624.5,2624.1,0.95274]
[1727278025954,3.0824,2624.5,2624.4,0.38105]
[1727278026154,3.46344,2624.5,2624.4,0.38105]
[1727278026563,3.0824,2624.5,2624.4,0.38105]
[1727278027063,3.46344,2624.5,2624.4,0.38105]
[1727278029172,3.46344,2624.5,2624.3,0.38106]
[1727278029571,3.0824,2624.5,2624.2,0.38107]
[1727278029874,4.03501,2624.5,2624.2,0.38107]
[1727278030167,0.38106,2624.4,2624.2,0.38107]
[1727278030381,2.02345,2624.5,2624.3,0.38106]
[1727278030579,2.02345,2624.5,2624.4,0.38105]
[1727278030780,5.83385,2624.5,2624.4,0.38105]
[1727278031974,4.2128,2624.5,2624.4,0.38105]
[1727278032486,0.4024,2624.5,2624.4,0.38105]
[1727278032679,0.4024,2624.5,2624.4,1.37798451]
[1727278032984,2.02344,2624.5,2624.4,1.37798451]
[1727278033985,2.97605,2624.5,2624.4,0.99693451]
[1727278034284,0.38105,2624.4,2624.3,0.99693451]
[1727278034786,1.62105,2624.4,2624.3,0.99693451]
[1727278035282,9.30453,2624.4,2624.3,0.99693451]
[1727278035488,9.30453,2624.4,2623.9,1.37804451]
[1727278035489,0.3811,2624.1,2623.9,1.37804451]
[1727278035686,1.99,2624.0,2623.9,1.37804451]
[1727278035985,2.3575,2624.0,2623.9,1.37804451]
[1727278036386,4.17861,2624.0,2623.9,1.37804451]
[1727278038788,1.49861,2624.0,2623.9,1.37804451]
[1727278039482,1.12341,2624.0,2623.9,1.37804451]
[1727278040378,1.12341,2624.0,2623.9,0.99693451]
[1727278040573,1.12341,2624.0,2623.9,1.37806451]
[1727278041587,1.12341,2624.0,2623.9,0.99693451]
[1727278041780,4.7562,2624.0,2623.9,0.99693451]
[1727278042887,3.80341,2624.0,2623.9,1.37806451]
[1727278043079,3.80341,2624.0,2623.9,0.38113]
[1727278043981,3.80341,2624.0,2623.9,1.37806451]
[1727278044483,4.7562,2624.0,2623.9,0.99693451]
[1727278044679,0.38113,2623.9,2623.8,1.37806451]
[1727278045684,3.80343,2624.0,2623.8,0.99693451]
[1727278045884,0.38113,2623.9,2623.8,1.37806451]
[1727278046084,1.12342,2624.0,2623.9,0.38113]
[1727278046481,0.3675,2624.0,2623.9,0.38113]
[1727278046684,0.3675,2624.0,2623.9,1.76086451]
[1727278047080,0.3675,2624.0,2623.9,3.02670875]
[1727278047280,0.3675,2624.0,2623.9,1.76086451]
[1727278047779,3.2078,2624.1,2624.0,1.3339]
[1727278048088,3.2078,2624.1,2624.0,4.48104976]
[1727278048390,0.3665,2624.4,2624.3,0.38107]
[1727278048688,0.3672,2624.5,2624.4,0.38105]
[1727278048984,0.3672,2624.5,2624.4,3.1442375]
[1727278049490,0.3672,2624.5,2624.4,3.14416888]
[1727278050287,0.3672,2624.5,2624.4,1.64664357]
[1727278050787,0.3672,2624.5,2624.4,3.14416888]
[1727278050990,0.3672,2624.5,2624.4,2.64485239]
[1727278051181,0.3672,2624.5,2624.4,2.64480709]
[1727278051889,0.3672,2624.5,2624.4,1.64664357]
[1727278052082,0.3672,2624.5,2624.4,2.64481359]
[1727278053294,0.3672,2624.5,2624.4,1.64664357]
[1727278053498,3.2078,2624.7,2624.4,7.75599357]
[1727278053696,2.4909991,2625.2,2625.0,0.38097]
[1727278053697,0.3715,2625.1,2625.0,0.38097]
[1727278053898,0.3731,2625.2,2625.1,0.38095]
[1727278054096,3.96022,2625.4,2625.3,0.38092]
[1727278054289,3.5793,2625.4,2625.3,0.38092]
[1727278054495,3.96021,2625.4,2625.3,0.38092]
[1727278054693,3.96021,2625.4,2625.2,1.37885374]
[1727278054891,0.75241,2625.4,2625.2,0.38093]
[1727278058499,0.75398,2625.6,2625.4,0.3809]
[1727278058797,3.2078,2625.7,2625.6,0.38088]
[1727278058995,3.2078,2625.7,2625.3,2.68]
[1727278058996,3.58866,2625.7,2625.5,0.38089]
[1727278059398,0.38088,2625.6,2625.4,0.7489]
[1727278059596,0.38089,2625.5,2625.3,0.38092]
[1727278059790,3.4451,2625.5,2625.3,0.38092]
[1727278060199,3.4434,2625.5,2625.3,0.38092]
[1727278060500,3.8243,2625.5,2625.3,0.38092]
[1727278060695,3.4434,2625.5,2625.3,0.38092]
[1727278060899,3.82429,2625.5,2625.3,0.38092]
[1727278063003,0.7634,2625.5,2625.2,0.3894]
[1727278063200,0.3842,2625.5,2625.4,0.38091]
[1727278063701,0.3829,2625.9,2625.4,0.38091]
[1727278063702,0.76374,2625.9,2625.7,0.38085]
[1727278063904,2.68,2625.8,2625.5,0.3807]
[1727278064099,0.95214,2625.8,2625.2,0.3894]
[1727278064297,0.38089,2625.6,2625.4,8.30634426]
[1727278064602,0.38089,2625.6,2625.4,0.3809]
[1727278064901,0.95218,2625.7,2625.2,0.7701]
[1727278065109,0.3729,2625.5,2625.2,0.7701]
[1727278065401,0.3729,2625.5,2625.3,7.94663644]
[1727278065599,0.75381,2625.5,2625.3,8.32754644]
[1727278065808,0.3729,2625.5,2625.4,0.38091]
[1727278066001,0.7538,2625.5,2625.3,8.32754644]
[1727278066306,0.3729,2625.5,2625.4,0.38091]
[1727278066509,0.7538,2625.5,2625.3,8.32754644]
[1727278066904,0.7538,2625.5,2625.4,0.38091]
[1727278067110,0.7538,2625.5,2625.3,7.94663644]
[1727278067401,0.75379,2625.5,2625.4,0.38091]
[1727278068013,0.3729,2625.5,2625.4,0.38091]
[1727278068601,0.75379,2625.5,2625.4,0.38091]
[1727278068911,0.3729,2625.5,2625.4,0.38091]
[1727278069210,0.75379,2625.5,2625.4,0.38091]
[1727278069603,0.38091,2625.4,2625.3,0.38091]
[1727278069804,0.3718,2625.4,2625.3,0.38091]
[1727278070407,0.3718,2625.4,2625.2,0.7701]
[1727278070607,0.75271,2625.4,2625.3,0.38092]
[1727278070811,0.38092,2625.3,2625.2,0.38093]
[1727278071001,0.3718,2625.4,2625.1,0.76354]
[1727278071201,0.38094,2625.2,2625.1,0.3826]
[1727278071407,0.38094,2625.2,2625.1,0.38095]
[1727278071613,0.38096,2625.1,2624.7,1.34342]
[1727278071803,0.75126,2625.1,2624.9,0.38097]
[1727278072003,0.75126,2625.1,2625.0,7.90562474]
[1727278072316,0.75126,2625.1,2624.8,0.38099]
[1727278072317,0.38098,2624.9,2624.8,0.38099]
[1727278072605,0.38103,2624.6,2624.5,0.38103]
[1727278072805,0.38101,2624.7,2624.6,0.38102]
[1727278073006,6.67,2624.8,2624.5,0.38103]
[1727278073007,0.38103,2624.6,2624.5,0.38103]
[1727278073599,0.3703,2624.7,2624.4,8.48759999]
[1727278073800,0.38104,2624.5,2624.4,8.48760999]
[1727278074004,0.38103,2624.6,2624.4,0.38105]
[1727278074203,0.38104,2624.5,2624.4,0.38105]
[1727278074503,0.3703,2624.7,2624.5,0.38103]
[1727278074702,0.38102,2624.6,2624.4,0.38104]
[1727278075008,0.38105,2624.4,2624.3,0.38106]
[1727278075209,0.38105,2624.4,2624.2,0.38107]
[1727278075510,0.38107,2624.3,2624.2,0.38107]
[1727278075707,1.14857,2624.3,2624.2,0.38107]
[1727278075902,1.14857,2624.3,2624.1,1.14419]
[1727278076103,1.14857,2624.3,2624.1,0.7631]
[1727278076307,1.14857,2624.3,2624.2,0.38108]
[1727278076503,1.14857,2624.3,2624.1,0.38109]
[1727278077609,1.14857,2624.3,2623.7,3.2078]
[1727278077610,0.3811,2624.1,2623.7,3.2078]
[1727278077818,0.3811,2624.1,2623.9,0.38112]
[1727278078006,0.38111,2624.0,2623.9,0.38112]
[1727278078505,6.2634,2624.2,2623.8,0.38113]
[1727278078506,3.5834,2624.2,2623.8,0.38113]
[1727278078802,3.5834,2624.2,2623.5,0.7562]
[1727278078803,0.38111,2624.1,2623.6,7.99876643]
[1727278079003,0.38111,2624.1,2623.9,0.38112]
[1727278080406,3.5834,2624.2,2623.9,0.38112]
[1727278080611,0.3811,2624.1,2623.9,0.38112]
[1727278081009,0.3756,2624.2,2623.6,14.83948643]
[1727278081415,0.38112,2624.0,2623.8,0.38114]
[1727278081719,0.38115,2623.8,2623.6,0.38116]
[1727278082013,0.3693,2623.7,2623.6,0.38116]
[1727278082409,0.3693,2623.7,2623.6,4.19236]
[1727278082605,0.75046,2623.7,2623.6,0.38116]
[1727278083018,0.75046,2623.7,2623.5,1.13737]
[1727278083209,0.3693,2623.7,2623.6,0.38117]
[1727278083411,0.3693,2623.7,2623.6,8.45471038]
[1727278083714,0.3693,2623.7,2623.6,12.26591038]
[1727278083911,0.3693,2623.7,2623.6,8.45471038]
[1727278085216,0.76244,2623.9,2623.7,0.38115]
[1727278085522,0.38114,2623.8,2623.6,8.45470038]
[1727278086815,0.38114,2623.8,2623.7,0.38116]
[1727278087513,0.38114,2623.8,2623.7,0.38115]
[1727278087714,0.76244,2623.9,2623.7,0.38115]
[1727278088115,0.3813,2623.9,2623.8,0.38114]
[1727278088513,0.3756,2624.2,2623.8,4.19234]
[1727278088712,3.2078,2624.4,2623.9,3.63282]
[1727278088912,3.58886,2624.4,2624.2,0.38107]
[1727278089324,3.2078,2624.4,2623.6,0.99792374]
[1727278089511,0.3673,2624.5,2623.4,0.3847]
[1727278089512,0.38116,2623.7,2623.4,0.3847]
[1727278089715,0.3911,2623.6,2623.5,0.38118]
[1727278089913,0.3911,2623.6,2623.5,8.57542369]
[1727278090220,0.3867,2623.8,2623.7,0.38116]
[1727278090722,0.3911,2624.0,2623.5,10.87424369]
[1727278090723,0.3911,2624.0,2623.9,0.38113]
[1727278091419,0.38107,2624.3,2624.1,0.38109]
[1727278091420,0.3911,2624.3,2624.1,0.38109]
[1727278091622,0.77217,2624.3,2624.0,0.3807]
[1727278091918,0.77217,2624.3,2624.1,0.38109]
[1727278092220,0.3911,2624.3,2624.1,0.38109]
[1727278092425,0.3911,2624.3,2624.2,0.38108]
[1727278092630,3.5942,2624.5,2624.4,0.38105]
[1727278092919,3.2078,2624.5,2624.3,0.38106]
[1727278093512,3.5939,2624.5,2624.3,0.38106]
[1727278094723,3.97494,2624.5,2624.2,0.38107]
[1727278095529,3.5939,2624.5,2624.3,0.38106]
[1727278096419,3.97495,2624.5,2624.2,0.38107]
[1727278097222,3.97495,2624.5,2624.3,0.38107]
[1727278097616,3.97495,2624.5,2624.2,0.38107]
[1727278097822,0.38106,2624.4,2624.2,0.38107]
[1727278099119,0.38106,2624.4,2624.0,0.3807]
[1727278099120,6.2739,2624.5,2624.0,0.3807]
[1727278099321,3.0751,2624.3,2623.8,0.7714]
[1727278099529,0.95279,2624.0,2623.7,0.38114]
[1727278099730,0.38114,2623.8,2623.7,0.38114]
[1727278099923,0.38116,2623.7,2623.6,8.58680416]
[1727278100126,7.21363,2623.9,2623.6,8.58680416]
[1727278100327,0.38116,2623.7,2623.6,0.38117]
[1727278100522,0.38116,2623.7,2623.5,8.20563416]
[1727278100523,2.68,2623.7,2623.5,8.20563416]
[1727278100721,2.68,2623.7,2623.4,0.3853]
[1727278100925,2.68,2623.7,2623.3,0.3812]
[1727278100926,0.3812,2623.4,2623.3,0.3812]
[1727278101126,0.38121,2623.4,2623.3,0.38121]
[1727278101438,3.45401,2623.4,2623.3,0.38121]
[1727278101731,3.0728,2623.4,2623.3,0.38121]
[1727278102924,3.45401,2623.4,2623.3,0.38121]
[1727278103132,0.77401,2623.4,2623.3,0.38121]
[1727278103328,0.77401,2623.4,2623.0,0.3853]
[1727278103329,0.77401,2623.4,2623.2,0.38122]
[1727278103527,3.45401,2623.4,2623.0,0.3853]
[1727278103838,0.38121,2623.3,2623.1,8.32457536]
[1727278104037,3.0728,2623.4,2623.0,0.76654]
[1727278104335,3.06123,2623.2,2623.0,0.76654]
[1727278104524,2.68,2623.2,2623.1,0.38124]
[1727278104925,3.2078,2623.3,2623.2,0.38123]
[1727278105125,5.8878,2623.3,2622.6,0.3898]
[1727278105335,2.68,2622.7,2622.6,0.3811]
[1727278105842,3.062,2622.7,2622.6,0.3811]
[1727278106937,3.062,2622.7,2622.6,0.76242]
[1727278107929,3.062,2622.7,2622.6,0.3811]
[1727278108326,3.062,2622.7,2622.6,0.76242]
[1727278108528,3.062,2622.7,2622.6,0.3811]
[1727278108737,3.062,2622.7,2622.6,0.38132]
[1727278109429,3.062,2622.7,2622.5,0.46160329]
[1727278109430,3.062,2622.7,2622.5,0.84293329]
[1727278109737,2.68,2622.6,2622.5,0.38133]
[1727278109936,2.68,2622.6,2622.4,0.76133]
[1727278110137,0.382,2622.7,2622.5,0.38133]
[1727278110434,3.062,2622.7,2622.5,0.38133]
[1727278110636,3.062,2622.7,2622.4,0.38]
[1727278111032,3.062,2622.7,2622.5,0.38133]
[1727278111338,3.062,2622.7,2622.6,0.38132]
[1727278111930,0.382,2622.7,2622.6,0.38132]
[1727278112131,3.062,2622.7,2622.6,0.38132]
[1727278113225,0.382,2622.7,2622.6,0.38132]
[1727278113438,3.062,2622.7,2622.6,0.38132]
[1727278115336,0.382,2622.7,2622.6,0.38132]
[1727278115841,3.062,2622.7,2622.6,0.38132]
[1727278116139,0.382,2622.7,2622.6,0.38132]
[1727278116343,3.062,2622.7,2622.6,0.38132]
[1727278117159,3.062,2622.7,2622.4,0.38]
[1727278117345,4.54307,2622.7,2622.2,0.7837]
[1727278117551,3.06134,2622.5,2622.3,0.38135]
[1727278118355,3.06134,2622.5,2622.4,0.38134]
[1727278118741,3.06134,2622.5,2622.3,0.38136]
[1727278118742,0.38135,2622.4,2622.3,0.38136]
[1727278118945,0.38135,2622.4,2621.9,0.3936]
[1727278118946,0.38138,2622.2,2621.9,0.3936]
[1727278119153,0.38137,2622.2,2621.9,0.7714]
[1727278119349,0.38137,2622.2,2622.1,0.38139]
[1727278119550,3.06137,2622.2,2622.1,0.38139]
[1727278120354,2.68,2622.2,2621.9,0.7714]
[1727278120546,2.68,2622.2,2621.4,4.4605735]
[1727278120746,2.68,2622.2,2620.8,5.07697085]
[1727278120747,3.2078,2621.9,2620.9,1.78122374]
[1727278120950,2.68,2621.5,2621.2,3.2078]
[1727278121155,2.68,2621.5,2621.3,7.96862821]
[1727278121356,0.7424,2621.8,2620.9,11.95972821]
[1727278121357,3.0548,2621.4,2620.9,11.95972821]
[1727278121748,0.3748,2621.4,2621.0,4.03771192]
[1727278121951,2.68,2621.2,2621.0,7.91646643]
[1727278122353,2.68,2621.2,2620.9,0.401]
[1727278122556,2.68,2621.0,2620.9,0.401]
[1727278122861,0.3748,2621.4,2620.9,0.401]
[1727278122862,2.68,2621.2,2620.9,0.401]
[1727278123662,2.68,2621.0,2620.6,3.85224976]
[1727278123861,2.68,2621.0,2620.6,0.3896]
[1727278123862,2.68,2620.8,2620.6,0.3896]
[1727278124863,2.68,2620.8,2620.3,3.9649]
[1727278125455,2.68,2620.8,2620.4,7.90602307]
[1727278125960,0.768,2621.2,2620.4,7.90602307]
[1727278126160,2.68,2621.0,2620.4,7.90602307]
[1727278126854,3.2078,2621.1,2620.4,10.58602307]
[1727278127058,5.8878,2621.1,2620.4,10.58602307]
[1727278127363,2.68,2621.0,2620.4,7.90602307]
[1727278128554,2.68,2620.8,2620.4,7.90602307]
[1727278129351,0.3773,2620.9,2620.4,7.90602307]
[1727278130560,2.68,2620.7,2620.4,7.90602307]
[1727278134658,2.68,2620.6,2620.3,0.3675]
[1727278134860,2.68,2620.4,2620.3,0.3675]
[1727278135163,2.68,2620.7,2620.3,0.3675]
[1727278135761,3.2078,2620.8,2620.3,0.3675]
[1727278135950,2.68,2620.7,2620.3,0.3675]
[1727278136459,2.68,2620.7,2620.3,3.5753]
[1727278136765,2.68,2620.7,2620.4,0.3829]
[1727278138761,2.68,2620.7,2620.4,0.7745]
[1727278139070,0.3773,2621.0,2620.4,0.7745]
[1727278139755,2.68,2620.9,2620.4,0.7745]
[1727278140562,0.3773,2621.0,2620.4,0.7745]
[1727278140763,3.0573,2621.0,2620.4,0.7745]
[1727278142965,2.68,2620.8,2620.4,0.7745]
[1727278143166,2.68,2620.6,2620.4,0.7745]
[1727278143464,2.68,2620.6,2620.3,0.3675]
[1727278144265,2.68,2620.4,2620.3,0.3675]
[1727278144458,2.68,2620.4,2620.0,0.764]
[1727278144661,2.68,2620.1,2620.0,0.764]
[1727278144953,2.68,2620.1,2620.0,9.00279315]
[1727278145156,2.10721428,2620.1,2620.0,9.00279315]
[1727278146469,2.10721428,2620.1,2620.0,8.23879315]
[1727278146657,1.15262504,2620.1,2620.0,8.23879315]
[1727278146857,1.15262504,2620.1,2619.8,8.68423283]
[1727278147055,3.0684,2620.4,2620.0,3.2078]
[1727278147258,3.0684,2620.4,2620.1,0.4043]
[1727278147464,3.0684,2620.4,2620.1,8.33543283]
[1727278148069,2.68,2620.2,2619.6,3.2078]
[1727278148264,0.3884,2620.4,2619.7,0.4041]
[1727278148265,2.68,2619.9,2619.7,0.4041]
[1727278148465,2.68,2619.9,2619.7,11.88642531]
[1727278148770,0.7846,2619.8,2619.4,0.4041]
[1727278148968,2.68,2619.5,2619.4,0.4041]
[1727278149379,2.68,2619.5,2619.2,8.14401915]
[1727278149565,2.68,2619.3,2619.1,3.2078]
[1727278150273,5.8878,2619.7,2619.1,3.2078]
[1727278150274,3.0769,2619.2,2619.1,3.2078]
[1727278151165,0.3969,2619.2,2619.1,3.2078]
[1727278151469,2.68,2619.5,2619.1,3.2078]
[1727278152776,2.68,2619.3,2619.1,3.2078]
[1727278153065,2.68,2619.3,2618.8,3.6119]
[1727278153368,0.3969,2619.6,2618.8,3.6119]
[1727278153369,2.68,2618.9,2618.8,3.6119]
[1727278153574,2.68,2618.9,2618.8,0.4041]
[1727278153770,3.0701,2619.1,2618.8,0.4041]
[1727278154570,3.2078,2619.4,2618.9,3.8184]
[1727278154777,3.2078,2619.4,2618.9,4.09912676]
[1727278154968,3.2078,2619.4,2619.0,0.3899]
[1727278155471,3.2078,2619.4,2619.1,7.96261563]
[1727278155674,2.68,2619.5,2619.1,7.96261563]
[1727278156168,3.9995,2619.7,2619.1,11.17041563]
[1727278156373,3.5979,2619.7,2619.2,4.14649756]